[Event "Titled Tuesday Blitz August 1 Early 2023"]
[White "Starozhilov, Leonid"]
[Black "NigelDwarf"]
[WhiteFideId "14106752"]
[WhiteElo "2758"]
[BlackElo "2529"]
[Result "1-0"]
[Round "2"]
[TimeControl "180+1"]
[Date "2023.08.01"]
[WhiteClock "0:00:05"]
[BlackClock "0:00:07"]
[Board "66"]

1. e4 {[%clk 0:03:00]}  c5 {[%clk 0:02:59]} 2. Nf3 {[%clk 0:03:00]}  d6 {[%clk 0:02:59]} 3. Bb5+ {[%clk 0:02:58]}  Nd7 {[%clk 0:02:58]} 4. O-O {[%clk 0:02:58]}  a6 {[%clk 0:02:58]} 5. Bxd7+ {[%clk 0:02:58]}  Bxd7 {[%clk 0:02:58]} 6. Re1 {[%clk 0:02:59]}  Nf6 {[%clk 0:02:54]} 7. c3 {[%clk 0:02:59]}  Bc6 {[%clk 0:02:48]} 8. d4 {[%clk 0:02:59]}  cxd4 {[%clk 0:02:43]} 9. cxd4 {[%clk 0:02:57]}  d5 {[%clk 0:02:33]} 10. e5 {[%clk 0:02:48]}  Ne4 {[%clk 0:02:31]} 11. e6 {[%clk 0:02:29]}  fxe6 {[%clk 0:02:30]} 12. Ne5 {[%clk 0:02:23]}  g6 {[%clk 0:02:10]} 13. Qg4 {[%clk 0:02:18]}  Qd6 {[%clk 0:01:40]} 14. Bf4 {[%clk 0:02:06]}  Nf6 {[%clk 0:01:39]} 15. Qh3 {[%clk 0:01:59]}  Nh5 {[%clk 0:01:31]} 16. Bd2 {[%clk 0:01:38]}  Bg7 {[%clk 0:01:14]} 17. Nc3 {[%clk 0:01:34]}  O-O {[%clk 0:01:11]} 18. a3 {[%clk 0:01:25]}  Bxe5 {[%clk 0:00:33]} 19. Rxe5 {[%clk 0:01:23]}  Rf5 {[%clk 0:00:33]} 20. Rae1 {[%clk 0:01:18]}  Raf8 {[%clk 0:00:30]} 21. f3 {[%clk 0:01:02]}  Ng7 {[%clk 0:00:18]} 22. Bh6 {[%clk 0:00:58]}  Bd7 {[%clk 0:00:14]} 23. Bxg7 {[%clk 0:00:58]}  Kxg7 {[%clk 0:00:15]} 24. Qg3 {[%clk 0:00:56]}  Qb6 {[%clk 0:00:15]} 25. Qf2 {[%clk 0:00:54]}  Kg8 {[%clk 0:00:14]} 26. h4 {[%clk 0:00:47]}  Rf4 {[%clk 0:00:13]} 27. Ne2 {[%clk 0:00:48]}  R4f5 {[%clk 0:00:13]} 28. Rxf5 {[%clk 0:00:36]}  Rxf5 {[%clk 0:00:13]} 29. Nc1 {[%clk 0:00:36]}  Rf4 {[%clk 0:00:12]} 30. Rd1 {[%clk 0:00:32]}  Ba4 {[%clk 0:00:12]} 31. Rd2 {[%clk 0:00:32]}  Bb5 {[%clk 0:00:12]} 32. g3 {[%clk 0:00:20]}  Rf7 {[%clk 0:00:12]} 33. Qe3 {[%clk 0:00:16]}  Qc7 {[%clk 0:00:10]} 34. Rg2 {[%clk 0:00:05]}  Bc4 {[%clk 0:00:07]} 35. Kh2 {[%clk 0:00:05]}  Bb5 {[%clk 0:00:07]} 36. Nb3 {[%clk 0:00:04]}  Qc4 {[%clk 0:00:07]} 37. Nd2 {[%clk 0:00:04]}  Qc2 {[%clk 0:00:07]} 38. Rf2 {[%clk 0:00:05]}  Qxb2 {[%clk 0:00:07]} 39. Ne4 {[%clk 0:00:04]}  dxe4 {[%clk 0:00:07]} 40. Rxb2 {[%clk 0:00:04]}  exf3 {[%clk 0:00:08]} 41. Qf2 {[%clk 0:00:04]}  Be2 {[%clk 0:00:08]} 42. Rxe2 {[%clk 0:00:04]}  fxe2 {[%clk 0:00:07]} 43. Qxe2 {[%clk 0:00:05]} 1-0


[Site "https://www.chess.com"]

[Event "Titled Tuesday Blitz August 1 Early 2023"]
[White "Volovich, Vasily"]
[Black "Malka, Samuel"]
[WhiteFideId "34169676"]
[BlackFideId "20643675"]
[WhiteElo "2753"]
[BlackElo "2529"]
[Result "0-1"]
[Round "2"]
[TimeControl "180+1"]
[Date "2023.08.01"]
[WhiteClock "0:00:00"]
[BlackClock "0:00:07"]
[Board "67"]

1. e4 {[%clk 0:03:00]}  c5 {[%clk 0:02:51]} 2. Nf3 {[%clk 0:03:00]}  Nc6 {[%clk 0:02:50]} 3. Bb5 {[%clk 0:02:59]}  d6 {[%clk 0:02:49]} 4. O-O {[%clk 0:02:56]}  Bd7 {[%clk 0:02:49]} 5. Re1 {[%clk 0:02:56]}  Nf6 {[%clk 0:02:47]} 6. c3 {[%clk 0:02:56]}  a6 {[%clk 0:02:47]} 7. Bd3 {[%clk 0:02:56]}  e5 {[%clk 0:02:32]} 8. h3 {[%clk 0:02:55]}  g5 {[%clk 0:02:18]} 9. Be2 {[%clk 0:02:49]}  g4 {[%clk 0:02:00]} 10. hxg4 {[%clk 0:02:48]}  Bxg4 {[%clk 0:02:01]} 11. d3 {[%clk 0:02:28]}  Rg8 {[%clk 0:01:55]} 12. Nbd2 {[%clk 0:02:15]}  Bh6 {[%clk 0:01:48]} 13. Nf1 {[%clk 0:02:14]}  Bxc1 {[%clk 0:01:30]} 14. Qxc1 {[%clk 0:02:13]}  Qd7 {[%clk 0:01:29]} 15. Qh6 {[%clk 0:02:07]}  Rg6 {[%clk 0:01:29]} 16. Qh4 {[%clk 0:02:06]}  Nh5 {[%clk 0:01:05]} 17. g3 {[%clk 0:01:34]}  Nf4 {[%clk 0:01:01]} 18. N1h2 {[%clk 0:01:24]}  h5 {[%clk 0:00:47]} 19. Nxg4 {[%clk 0:01:17]}  Rxg4 {[%clk 0:00:47]} 20. Qf6 {[%clk 0:01:09]}  Nxe2+ {[%clk 0:00:39]} 21. Rxe2 {[%clk 0:01:08]}  Rg8 {[%clk 0:00:29]} 22. Kg2 {[%clk 0:01:03]}  Qe7 {[%clk 0:00:18]} 23. Qxe7+ {[%clk 0:00:50]}  Kxe7 {[%clk 0:00:19]} 24. Rh1 {[%clk 0:00:50]}  Rh8 {[%clk 0:00:19]} 25. Rh4 {[%clk 0:00:43]}  Rag8 {[%clk 0:00:20]} 26. Re1 {[%clk 0:00:42]}  Nd8 {[%clk 0:00:19]} 27. Reh1 {[%clk 0:00:42]}  Ne6 {[%clk 0:00:15]} 28. Kf1 {[%clk 0:00:42]}  Ng7 {[%clk 0:00:14]} 29. Ke2 {[%clk 0:00:41]}  Rh6 {[%clk 0:00:13]} 30. Nd2 {[%clk 0:00:40]}  Rgh8 {[%clk 0:00:13]} 31. Nc4 {[%clk 0:00:39]}  b5 {[%clk 0:00:12]} 32. Ne3 {[%clk 0:00:40]}  Ke6 {[%clk 0:00:12]} 33. g4 {[%clk 0:00:38]}  f6 {[%clk 0:00:11]} 34. Nd5 {[%clk 0:00:17]}  Kf7 {[%clk 0:00:11]} 35. Nc7 {[%clk 0:00:16]}  Ke7 {[%clk 0:00:09]} 36. Nd5+ {[%clk 0:00:13]}  Kf7 {[%clk 0:00:09]} 37. f4 {[%clk 0:00:13]}  Ne6 {[%clk 0:00:08]} 38. fxe5 {[%clk 0:00:08]}  fxe5 {[%clk 0:00:08]} 39. Rxh5 {[%clk 0:00:07]}  Rxh5 {[%clk 0:00:08]} 40. gxh5 {[%clk 0:00:07]}  Rh6 {[%clk 0:00:08]} 41. Kf3 {[%clk 0:00:06]}  Ng5+ {[%clk 0:00:07]} 42. Kg4 {[%clk 0:00:06]}  Ne6 {[%clk 0:00:07]} 43. Rf1+ {[%clk 0:00:07]}  Kg7 {[%clk 0:00:08]} 44. Ne7 {[%clk 0:00:00]}  Rh8 {[%clk 0:00:07]} 0-1


[Site "https://www.chess.com"]

[Event "Titled Tuesday Blitz August 1 Early 2023"]
[White "Xu, Yi"]
[Black "Souleidis, Georgios"]
[WhiteFideId "8605564"]
[BlackFideId "4206827"]
[WhiteElo "2752"]
[BlackElo "2525"]
[Result "1-0"]
[Round "2"]
[TimeControl "180+1"]
[Date "2023.08.01"]
[WhiteClock "0:00:03"]
[BlackClock "0:00:00"]
[Board "69"]

1. d4 {[%clk 0:02:54]}  Nf6 {[%clk 0:02:59]} 2. c4 {[%clk 0:02:55]}  g6 {[%clk 0:02:59]} 3. Nc3 {[%clk 0:02:53]}  Bg7 {[%clk 0:03:00]} 4. e4 {[%clk 0:02:53]}  d6 {[%clk 0:03:01]} 5. Nf3 {[%clk 0:02:33]}  O-O {[%clk 0:03:00]} 6. h3 {[%clk 0:02:33]}  e5 {[%clk 0:02:56]} 7. d5 {[%clk 0:02:33]}  Na6 {[%clk 0:02:56]} 8. Be3 {[%clk 0:02:33]}  Nh5 {[%clk 0:02:56]} 9. Nd2 {[%clk 0:02:31]}  Qe8 {[%clk 0:02:49]} 10. g3 {[%clk 0:02:23]}  f5 {[%clk 0:02:38]} 11. exf5 {[%clk 0:02:23]}  gxf5 {[%clk 0:02:38]} 12. Be2 {[%clk 0:02:23]}  Nf6 {[%clk 0:02:38]} 13. Qc2 {[%clk 0:02:10]}  c6 {[%clk 0:02:34]} 14. O-O-O {[%clk 0:02:02]}  cxd5 {[%clk 0:02:33]} 15. cxd5 {[%clk 0:02:02]}  Bd7 {[%clk 0:02:17]} 16. Nc4 {[%clk 0:01:54]}  Qe7 {[%clk 0:02:17]} 17. Kb1 {[%clk 0:01:47]}  Rfc8 {[%clk 0:02:13]} 18. Na5 {[%clk 0:01:35]}  Nc5 {[%clk 0:01:50]} 19. g4 {[%clk 0:01:08]}  Nce4 {[%clk 0:01:17]} 20. Rd3 {[%clk 0:00:16]}  f4 {[%clk 0:01:12]} 21. Bc1 {[%clk 0:00:07]}  Nxf2 {[%clk 0:01:07]} 22. Re1 {[%clk 0:00:07]}  e4 {[%clk 0:00:54]} 23. Rd4 {[%clk 0:00:07]}  Nxh3 {[%clk 0:00:41]} 24. Bf1 {[%clk 0:00:05]}  Ng5 {[%clk 0:00:25]} 25. Qb3 {[%clk 0:00:04]}  Nf3 {[%clk 0:00:20]} 26. Rdxe4 {[%clk 0:00:04]}  Nxe4 {[%clk 0:00:20]} 27. Rxe4 {[%clk 0:00:05]}  Qf6 {[%clk 0:00:09]} 28. Rxf4 {[%clk 0:00:05]}  Qg6+ {[%clk 0:00:05]} 29. Ka1 {[%clk 0:00:04]}  Nd4 {[%clk 0:00:06]} 30. Qd1 {[%clk 0:00:02]}  Nb5 {[%clk 0:00:04]} 31. Bxb5 {[%clk 0:00:02]}  Bxb5 {[%clk 0:00:01]} 32. Nxb5 {[%clk 0:00:02]}  a6 {[%clk 0:00:01]} 33. Nc3 {[%clk 0:00:02]}  Bxc3 {[%clk 0:00:02]} 34. bxc3 {[%clk 0:00:02]}  Rxc3 {[%clk 0:00:02]} 35. Bb2 {[%clk 0:00:02]}  Rc7 {[%clk 0:00:02]} 36. Nb3 {[%clk 0:00:02]}  Rac8 {[%clk 0:00:01]} 37. Rf1 {[%clk 0:00:01]}  a5 {[%clk 0:00:01]} 38. Qb1 {[%clk 0:00:02]}  a4 {[%clk 0:00:01]} 39. Qxg6+ {[%clk 0:00:02]}  hxg6 {[%clk 0:00:02]} 40. Nd4 {[%clk 0:00:03]}  Rc4 {[%clk 0:00:02]} 41. Ne6 {[%clk 0:00:03]}  Rxg4 {[%clk 0:00:00]} 42. Rh1 {[%clk 0:00:03]} 1-0


[Site "https://www.chess.com"]

[Event "Titled Tuesday Blitz August 1 Early 2023"]
[White "Matinian, Nikita"]
[Black "Martinez Reyes, Pedro Ramon"]
[WhiteFideId "24129100"]
[BlackFideId "3901807"]
[WhiteElo "2741"]
[BlackElo "2523"]
[Result "1-0"]
[Round "2"]
[TimeControl "180+1"]
[Date "2023.08.01"]
[WhiteClock "0:01:00"]
[BlackClock "0:00:01"]
[Board "70"]

1. e4 {[%clk 0:02:59]}  c5 {[%clk 0:02:56]} 2. Nf3 {[%clk 0:02:59]}  e6 {[%clk 0:02:54]} 3. d4 {[%clk 0:02:59]}  cxd4 {[%clk 0:02:53]} 4. Nxd4 {[%clk 0:03:00]}  Nc6 {[%clk 0:02:51]} 5. Nc3 {[%clk 0:02:59]}  a6 {[%clk 0:02:49]} 6. Be3 {[%clk 0:02:55]}  Nge7 {[%clk 0:02:44]} 7. Nb3 {[%clk 0:02:54]}  d6 {[%clk 0:02:16]} 8. h4 {[%clk 0:02:53]}  Qc7 {[%clk 0:02:13]} 9. h5 {[%clk 0:02:53]}  h6 {[%clk 0:02:12]} 10. f4 {[%clk 0:02:46]}  Bd7 {[%clk 0:02:10]} 11. Qf3 {[%clk 0:02:40]}  b5 {[%clk 0:01:57]} 12. O-O-O {[%clk 0:02:40]}  Nc8 {[%clk 0:01:51]} 13. e5 {[%clk 0:02:00]}  d5 {[%clk 0:01:20]} 14. Qg3 {[%clk 0:01:45]}  Nb6 {[%clk 0:01:18]} 15. Nc5 {[%clk 0:01:43]}  b4 {[%clk 0:01:06]} 16. Nxd7 {[%clk 0:01:42]}  Nxd7 {[%clk 0:01:00]} 17. Na4 {[%clk 0:01:37]}  Qa5 {[%clk 0:00:54]} 18. b3 {[%clk 0:01:37]}  Na7 {[%clk 0:00:22]} 19. f5 {[%clk 0:01:24]}  exf5 {[%clk 0:00:14]} 20. Bd3 {[%clk 0:01:24]}  Nc6 {[%clk 0:00:09]} 21. Bxf5 {[%clk 0:01:24]}  Ndxe5 {[%clk 0:00:09]} 22. Bb6 {[%clk 0:01:16]}  Qb5 {[%clk 0:00:07]} 23. Rhe1 {[%clk 0:01:17]}  f6 {[%clk 0:00:05]} 24. Bg6+ {[%clk 0:01:07]}  Kd7 {[%clk 0:00:05]} 25. Bc5 {[%clk 0:01:02]}  Bxc5 {[%clk 0:00:04]} 26. Rxd5+ {[%clk 0:01:01]}  Kc7 {[%clk 0:00:03]} 27. Rxc5 {[%clk 0:01:01]}  Qb7 {[%clk 0:00:03]} 28. Rexe5 {[%clk 0:01:01]}  fxe5 {[%clk 0:00:03]} 29. Qxe5+ {[%clk 0:01:01]}  Kc8 {[%clk 0:00:01]} 30. Bf5+ {[%clk 0:01:00]} 1-0


[Site "https://www.chess.com"]

[Event "Titled Tuesday Blitz August 1 Early 2023"]
[White "Gontcharov, Vladislav"]
[Black "Weetik, Vjacheslav"]
[WhiteFideId "4123492"]
[BlackFideId "4153472"]
[WhiteElo "2523"]
[BlackElo "2738"]
[Result "0-1"]
[Round "2"]
[TimeControl "180+1"]
[Date "2023.08.01"]
[WhiteClock "0:00:02"]
[BlackClock "0:00:05"]
[Board "71"]

1. d4 {[%clk 0:03:00]}  Nf6 {[%clk 0:02:59]} 2. c4 {[%clk 0:02:59]}  e6 {[%clk 0:03:00]} 3. Nc3 {[%clk 0:02:58]}  Bb4 {[%clk 0:03:00]} 4. e3 {[%clk 0:02:59]}  O-O {[%clk 0:03:00]} 5. Bd3 {[%clk 0:02:59]}  c5 {[%clk 0:02:59]} 6. Nf3 {[%clk 0:02:54]}  Bxc3+ {[%clk 0:02:58]} 7. bxc3 {[%clk 0:02:53]}  d6 {[%clk 0:02:58]} 8. Qc2 {[%clk 0:02:45]}  Nc6 {[%clk 0:02:56]} 9. O-O {[%clk 0:02:44]}  e5 {[%clk 0:02:50]} 10. h3 {[%clk 0:02:43]}  Qe7 {[%clk 0:02:30]} 11. d5 {[%clk 0:02:22]}  e4 {[%clk 0:02:18]} 12. dxc6 {[%clk 0:02:22]}  exd3 {[%clk 0:02:11]} 13. Qxd3 {[%clk 0:02:20]}  bxc6 {[%clk 0:02:10]} 14. Rd1 {[%clk 0:02:15]}  Rd8 {[%clk 0:01:58]} 15. Ba3 {[%clk 0:02:06]}  Ba6 {[%clk 0:01:54]} 16. Nd2 {[%clk 0:02:03]}  Qe6 {[%clk 0:01:44]} 17. e4 {[%clk 0:02:00]}  h6 {[%clk 0:01:41]} 18. Re1 {[%clk 0:01:54]}  Rd7 {[%clk 0:01:30]} 19. Re3 {[%clk 0:01:38]}  Nh5 {[%clk 0:01:22]} 20. Kh2 {[%clk 0:01:27]}  Rad8 {[%clk 0:01:10]} 21. g3 {[%clk 0:01:23]}  Qg6 {[%clk 0:01:07]} 22. Qe2 {[%clk 0:01:11]}  Nf6 {[%clk 0:01:06]} 23. f4 {[%clk 0:01:10]}  d5 {[%clk 0:00:49]} 24. exd5 {[%clk 0:01:02]}  Nxd5 {[%clk 0:00:42]} 25. Re8+ {[%clk 0:00:49]}  Kh7 {[%clk 0:00:42]} 26. Rxd8 {[%clk 0:00:41]}  Rxd8 {[%clk 0:00:43]} 27. Qe4 {[%clk 0:00:31]}  Nxc3 {[%clk 0:00:12]} 28. Qxg6+ {[%clk 0:00:31]}  Kxg6 {[%clk 0:00:12]} 29. Nf3 {[%clk 0:00:32]}  f6 {[%clk 0:00:11]} 30. Bxc5 {[%clk 0:00:31]}  Ne4 {[%clk 0:00:09]} 31. Bxa7 {[%clk 0:00:30]}  Bxc4 {[%clk 0:00:09]} 32. a4 {[%clk 0:00:28]}  Rd3 {[%clk 0:00:09]} 33. Nh4+ {[%clk 0:00:28]}  Kf7 {[%clk 0:00:09]} 34. a5 {[%clk 0:00:26]}  Rd2+ {[%clk 0:00:09]} 35. Kg1 {[%clk 0:00:24]}  Nxg3 {[%clk 0:00:09]} 36. Bf2 {[%clk 0:00:20]}  Ne2+ {[%clk 0:00:08]} 37. Kf1 {[%clk 0:00:17]}  Nxf4+ {[%clk 0:00:08]} 38. Ke1 {[%clk 0:00:15]}  Re2+ {[%clk 0:00:08]} 39. Kd1 {[%clk 0:00:15]}  Rxf2 {[%clk 0:00:08]} 40. Ra3 {[%clk 0:00:15]}  Ba6 {[%clk 0:00:06]} 41. Nf5 {[%clk 0:00:14]}  Rh2 {[%clk 0:00:04]} 42. Nd4 {[%clk 0:00:14]}  Rxh3 {[%clk 0:00:04]} 43. Ra4 {[%clk 0:00:14]}  Rh1+ {[%clk 0:00:04]} 44. Kd2 {[%clk 0:00:14]}  c5 {[%clk 0:00:05]} 45. Nb3 {[%clk 0:00:13]}  Rh2+ {[%clk 0:00:05]} 46. Ke3 {[%clk 0:00:10]}  Rh3+ {[%clk 0:00:05]} 47. Kxf4 {[%clk 0:00:10]}  Rxb3 {[%clk 0:00:06]} 48. Ra1 {[%clk 0:00:11]}  g5+ {[%clk 0:00:05]} 49. Kg4 {[%clk 0:00:02]}  Kg6 {[%clk 0:00:05]} 0-1


[Site "https://www.chess.com"]

[Event "Titled Tuesday Blitz August 1 Early 2023"]
[White "Papayan, Oleg"]
[Black "Skvortsov, Andrei"]
[WhiteFideId "4193911"]
[BlackFideId "24108600"]
[WhiteElo "2500"]
[BlackElo "2720"]
[Result "0-1"]
[Round "2"]
[TimeControl "180+1"]
[Date "2023.08.01"]
[WhiteClock "0:00:09"]
[BlackClock "0:00:12"]
[Board "79"]

1. e4 {[%clk 0:03:00]}  c5 {[%clk 0:03:00]} 2. d4 {[%clk 0:03:01]}  cxd4 {[%clk 0:03:01]} 3. Qxd4 {[%clk 0:03:01]}  Nc6 {[%clk 0:02:53]} 4. Qd3 {[%clk 0:03:02]}  a6 {[%clk 0:02:45]} 5. Nc3 {[%clk 0:03:01]}  b5 {[%clk 0:02:44]} 6. Nf3 {[%clk 0:02:55]}  Bb7 {[%clk 0:02:41]} 7. Bf4 {[%clk 0:02:52]}  e6 {[%clk 0:02:32]} 8. Be2 {[%clk 0:02:49]}  b4 {[%clk 0:02:28]} 9. Nb1 {[%clk 0:02:40]}  Nf6 {[%clk 0:02:24]} 10. O-O {[%clk 0:02:40]}  d5 {[%clk 0:02:23]} 11. Nbd2 {[%clk 0:02:35]}  dxe4 {[%clk 0:02:11]} 12. Nxe4 {[%clk 0:02:36]}  Qxd3 {[%clk 0:02:09]} 13. Nxf6+ {[%clk 0:02:36]}  gxf6 {[%clk 0:02:10]} 14. Bxd3 {[%clk 0:02:37]}  O-O-O {[%clk 0:02:07]} 15. Rfd1 {[%clk 0:02:16]}  Nd4 {[%clk 0:01:56]} 16. Nxd4 {[%clk 0:02:11]}  Rxd4 {[%clk 0:01:57]} 17. Be3 {[%clk 0:02:03]}  Rd7 {[%clk 0:01:53]} 18. f3 {[%clk 0:01:53]}  h5 {[%clk 0:01:49]} 19. Kf2 {[%clk 0:01:50]}  Bd6 {[%clk 0:01:47]} 20. h4 {[%clk 0:01:44]}  Rg8 {[%clk 0:01:45]} 21. Rh1 {[%clk 0:01:31]}  Be5 {[%clk 0:01:39]} 22. Rab1 {[%clk 0:01:25]}  f5 {[%clk 0:01:33]} 23. Bc5 {[%clk 0:01:09]}  Bg3+ {[%clk 0:01:29]} 24. Kf1 {[%clk 0:01:08]}  a5 {[%clk 0:01:26]} 25. Bb6 {[%clk 0:01:08]}  Rd5 {[%clk 0:01:17]} 26. Bf2 {[%clk 0:00:54]}  Bc7 {[%clk 0:01:13]} 27. Rd1 {[%clk 0:00:46]}  Kb8 {[%clk 0:01:12]} 28. Be2 {[%clk 0:00:46]}  Be5 {[%clk 0:01:10]} 29. b3 {[%clk 0:00:42]}  Rxd1+ {[%clk 0:01:04]} 30. Bxd1 {[%clk 0:00:43]}  Rd8 {[%clk 0:01:01]} 31. Be2 {[%clk 0:00:22]}  Rd2 {[%clk 0:00:59]} 32. Bd3 {[%clk 0:00:20]}  Rd1+ {[%clk 0:00:59]} 33. Be1 {[%clk 0:00:20]}  Ra1 {[%clk 0:00:52]} 34. Ke2 {[%clk 0:00:20]}  Rxa2 {[%clk 0:00:52]} 35. Bd2 {[%clk 0:00:18]}  Bd5 {[%clk 0:00:47]} 36. Rb1 {[%clk 0:00:15]}  Kc7 {[%clk 0:00:44]} 37. g4 {[%clk 0:00:15]}  fxg4 {[%clk 0:00:43]} 38. fxg4 {[%clk 0:00:16]}  hxg4 {[%clk 0:00:43]} 39. h5 {[%clk 0:00:17]}  f5 {[%clk 0:00:41]} 40. h6 {[%clk 0:00:17]}  Ra1 {[%clk 0:00:35]} 41. Rxa1 {[%clk 0:00:17]}  Bxa1 {[%clk 0:00:36]} 42. Bf4+ {[%clk 0:00:14]}  Kd7 {[%clk 0:00:34]} 43. h7 {[%clk 0:00:14]}  Bh8 {[%clk 0:00:34]} 44. Bb5+ {[%clk 0:00:07]}  Kd8 {[%clk 0:00:31]} 45. Bd6 {[%clk 0:00:06]}  Be4 {[%clk 0:00:30]} 46. Kd2 {[%clk 0:00:06]}  e5 {[%clk 0:00:27]} 47. Bc5 {[%clk 0:00:04]}  Kc7 {[%clk 0:00:25]} 48. Be7 {[%clk 0:00:02]}  f4 {[%clk 0:00:24]} 49. Bd3 {[%clk 0:00:02]}  Bd5 {[%clk 0:00:16]} 50. Bg5 {[%clk 0:00:02]}  Kd7 {[%clk 0:00:16]} 51. Ke2 {[%clk 0:00:02]}  Kd6 {[%clk 0:00:17]} 52. Bd8 {[%clk 0:00:02]}  Ke6 {[%clk 0:00:17]} 53. Bxa5 {[%clk 0:00:03]}  e4 {[%clk 0:00:17]} 54. Bc4 {[%clk 0:00:03]}  g3 {[%clk 0:00:17]} 55. Bb6 {[%clk 0:00:03]}  f3+ {[%clk 0:00:17]} 56. Kf1 {[%clk 0:00:03]}  Bxc4+ {[%clk 0:00:17]} 57. bxc4 {[%clk 0:00:04]}  Kd6 {[%clk 0:00:14]} 58. Ba5 {[%clk 0:00:03]}  Kc5 {[%clk 0:00:14]} 59. Bd8 {[%clk 0:00:03]}  Kxc4 {[%clk 0:00:14]} 60. Bg5 {[%clk 0:00:03]}  g2+ {[%clk 0:00:14]} 61. Kf2 {[%clk 0:00:03]}  Kc3 {[%clk 0:00:14]} 62. Be3 {[%clk 0:00:03]}  Kxc2 {[%clk 0:00:13]} 63. Kg3 {[%clk 0:00:03]}  b3 {[%clk 0:00:13]} 64. Kf4 {[%clk 0:00:04]}  b2 {[%clk 0:00:14]} 65. Kxe4 {[%clk 0:00:05]}  b1=Q {[%clk 0:00:14]} 66. Kxf3 {[%clk 0:00:06]}  Qf1+ {[%clk 0:00:14]} 67. Bf2 {[%clk 0:00:06]}  Kd3 {[%clk 0:00:14]} 68. Kg4 {[%clk 0:00:06]}  Qxf2 {[%clk 0:00:14]} 69. Kh5 {[%clk 0:00:07]}  g1=Q {[%clk 0:00:13]} 70. Kh6 {[%clk 0:00:08]}  Qg7+ {[%clk 0:00:13]} 71. Kh5 {[%clk 0:00:09]}  Qh2# {[%clk 0:00:12]} 0-1


[Site "https://www.chess.com"]

[Event "Titled Tuesday Blitz August 1 Early 2023"]
[White "Kazakov, Mikhail"]
[Black "Fiorito, Joaquin"]
[WhiteFideId "14102749"]
[BlackFideId "180173"]
[WhiteElo "2486"]
[BlackElo "2716"]
[Result "0-1"]
[Round "2"]
[TimeControl "180+1"]
[Date "2023.08.01"]
[WhiteClock "0:00:00"]
[BlackClock "0:00:14"]
[Board "80"]

1. d4 {[%clk 0:02:48]}  Nf6 {[%clk 0:02:59]} 2. c3 {[%clk 0:02:48]}  d5 {[%clk 0:02:59]} 3. Nf3 {[%clk 0:02:48]}  c5 {[%clk 0:03:00]} 4. g3 {[%clk 0:02:43]}  Nc6 {[%clk 0:03:00]} 5. Bg2 {[%clk 0:02:42]}  Bf5 {[%clk 0:03:00]} 6. dxc5 {[%clk 0:02:40]}  e6 {[%clk 0:02:56]} 7. Nd4 {[%clk 0:02:35]}  Be4 {[%clk 0:02:54]} 8. Bxe4 {[%clk 0:02:30]}  Nxe4 {[%clk 0:02:54]} 9. b4 {[%clk 0:02:05]}  a5 {[%clk 0:02:51]} 10. f3 {[%clk 0:02:02]}  Nf6 {[%clk 0:02:33]} 11. Nxc6 {[%clk 0:02:00]}  bxc6 {[%clk 0:02:33]} 12. O-O {[%clk 0:01:56]}  Be7 {[%clk 0:02:29]} 13. Nd2 {[%clk 0:01:52]}  O-O {[%clk 0:02:29]} 14. Nb3 {[%clk 0:01:51]}  axb4 {[%clk 0:02:22]} 15. cxb4 {[%clk 0:01:52]}  e5 {[%clk 0:02:17]} 16. e3 {[%clk 0:01:44]}  Qd7 {[%clk 0:02:07]} 17. Bb2 {[%clk 0:01:38]}  Qe6 {[%clk 0:02:07]} 18. Qd3 {[%clk 0:01:32]}  Rfb8 {[%clk 0:02:03]} 19. a3 {[%clk 0:01:30]}  Nd7 {[%clk 0:02:01]} 20. f4 {[%clk 0:01:24]}  Bf6 {[%clk 0:01:57]} 21. f5 {[%clk 0:01:17]}  Qe7 {[%clk 0:01:57]} 22. e4 {[%clk 0:01:17]}  d4 {[%clk 0:01:41]} 23. Bc1 {[%clk 0:01:17]}  Bg5 {[%clk 0:01:36]} 24. Nd2 {[%clk 0:01:16]}  Be3+ {[%clk 0:01:33]} 25. Kg2 {[%clk 0:01:16]}  Rxb4 {[%clk 0:01:33]} 26. axb4 {[%clk 0:00:58]}  Rxa1 {[%clk 0:01:31]} 27. Bb2 {[%clk 0:00:26]}  Ra8 {[%clk 0:00:58]} 28. Nc4 {[%clk 0:00:25]}  Rb8 {[%clk 0:00:59]} 29. Nxe3 {[%clk 0:00:20]}  dxe3 {[%clk 0:01:00]} 30. Bc3 {[%clk 0:00:20]}  Ra8 {[%clk 0:00:54]} 31. Qxe3 {[%clk 0:00:20]}  Nf6 {[%clk 0:00:54]} 32. Rd1 {[%clk 0:00:18]}  h6 {[%clk 0:00:53]} 33. h3 {[%clk 0:00:17]}  Ra3 {[%clk 0:00:52]} 34. Rd3 {[%clk 0:00:16]}  Ra2+ {[%clk 0:00:42]} 35. Rd2 {[%clk 0:00:16]}  Ra3 {[%clk 0:00:42]} 36. Rd3 {[%clk 0:00:16]}  Kh7 {[%clk 0:00:37]} 37. Bd2 {[%clk 0:00:16]}  Ra4 {[%clk 0:00:36]} 38. Kf3 {[%clk 0:00:16]}  Qb7 {[%clk 0:00:33]} 39. Rd6 {[%clk 0:00:15]}  Qb5 {[%clk 0:00:33]} 40. Qd3 {[%clk 0:00:15]}  Qb7 {[%clk 0:00:30]} 41. Qe3 {[%clk 0:00:14]}  Ra2 {[%clk 0:00:30]} 42. Rxf6 {[%clk 0:00:13]}  gxf6 {[%clk 0:00:29]} 43. Qxh6+ {[%clk 0:00:13]}  Kg8 {[%clk 0:00:30]} 44. Be3 {[%clk 0:00:14]}  Qb5 {[%clk 0:00:28]} 45. Kg4 {[%clk 0:00:10]}  Qe2+ {[%clk 0:00:28]} 46. Kh4 {[%clk 0:00:10]}  Qf3 {[%clk 0:00:28]} 47. Bg5 {[%clk 0:00:06]}  fxg5+ {[%clk 0:00:18]} 48. Qxg5+ {[%clk 0:00:07]}  Kh7 {[%clk 0:00:18]} 49. Qf6 {[%clk 0:00:06]}  Ra7 {[%clk 0:00:16]} 50. g4 {[%clk 0:00:05]}  Qf4 {[%clk 0:00:15]} 51. Kh5 {[%clk 0:00:04]}  Kg8 {[%clk 0:00:13]} 52. Qd8+ {[%clk 0:00:03]}  Kg7 {[%clk 0:00:14]} 53. Qf6+ {[%clk 0:00:00]}  Kxf6 {[%clk 0:00:14]} 0-1


[Site "https://www.chess.com"]

[Event "Titled Tuesday Blitz August 1 Early 2023"]
[White "D`Arruda, Ricardo D."]
[Black "Klukin, Kirill"]
[WhiteFideId "100692"]
[BlackFideId "24199273"]
[WhiteElo "2475"]
[BlackElo "2713"]
[Result "0-1"]
[Round "2"]
[TimeControl "180+1"]
[Date "2023.08.01"]
[WhiteClock "0:00:28"]
[BlackClock "0:01:26"]
[Board "82"]

1. d4 {[%clk 0:03:00]}  f5 {[%clk 0:02:56]} 2. g3 {[%clk 0:02:58]}  Nf6 {[%clk 0:02:56]} 3. Bg2 {[%clk 0:02:59]}  e6 {[%clk 0:02:56]} 4. Nf3 {[%clk 0:02:59]}  d5 {[%clk 0:02:56]} 5. Nbd2 {[%clk 0:02:56]}  Bd6 {[%clk 0:02:56]} 6. O-O {[%clk 0:02:56]}  O-O {[%clk 0:02:56]} 7. Ne5 {[%clk 0:02:55]}  c6 {[%clk 0:02:54]} 8. Ndf3 {[%clk 0:02:55]}  b6 {[%clk 0:02:52]} 9. c4 {[%clk 0:02:55]}  Bb7 {[%clk 0:02:52]} 10. Qc2 {[%clk 0:02:54]}  a5 {[%clk 0:02:51]} 11. Rd1 {[%clk 0:02:53]}  Qe7 {[%clk 0:02:50]} 12. b3 {[%clk 0:02:52]}  Na6 {[%clk 0:02:50]} 13. Bf4 {[%clk 0:02:50]}  Rfc8 {[%clk 0:02:33]} 14. Rac1 {[%clk 0:02:48]}  Ba3 {[%clk 0:02:26]} 15. Ra1 {[%clk 0:02:48]}  Ne4 {[%clk 0:02:23]} 16. Nd3 {[%clk 0:02:38]}  c5 {[%clk 0:02:16]} 17. dxc5 {[%clk 0:02:37]}  Naxc5 {[%clk 0:01:58]} 18. Nxc5 {[%clk 0:02:37]}  Bxc5 {[%clk 0:01:57]} 19. e3 {[%clk 0:02:31]}  b5 {[%clk 0:01:43]} 20. Ne5 {[%clk 0:00:28]}  g5 {[%clk 0:01:26]} 0-1


[Site "https://www.chess.com"]